Cogmind - Beta 15 @@@ ROGUE MODE // 2025.09.28 @ 23:54:45 Player: mgobin-777 Result: Self-destructed Performance ------------- Evolutions (2) 1000 Regions Visited (3) 600 Robots Destroyed (73) 365 Value Destroyed (1703) 1703 Prototype IDs (5) 100 Alien Tech Used (0) 0 Bonus (0) 0 TOTAL SCORE: 3768 Bonus ------- None Cogmind --------- Core Integrity 157/550 Matter 300/300 Energy 160/160 System Corruption 2% Temperature Cool (36) Movement Treading (160) Location -8/Materials Parts ------- > --- POWER (1) -------- Light Nuclear Core > --- PROPULSION (4) --- Light Treads Light Treads > --- UTILITY (3) ------ Improved Heat Sink > --- WEAPON (3) ------- Particle Gun > --- INVENTORY (5) ---- Light Nuclear Core Improved Sensor Array Hacking Suite Beam Cannon Faulty Advanced EMP Blaster Peak State ------------ > --- POWER ------------ Light Nuclear Core > --- PROPULSION ------- Compact Wheel Compact Wheel > --- UTILITY ---------- Machine Analyzer Improved Sensor Array Improved Sensor Array > --- WEAPON ----------- Improved EM Shotgun Beam Cannon Minigun > --- INVENTORY -------- Light Nuclear Core Improved Heat Sink Hacking Suite Grenade Launcher [Rating: 22] Favorites ----------- Power Light Ion Engine Engine Light Ion Engine Power Core Light Nuclear Core Propulsion Compact Wheel Treads Light Treads Wheel Compact Wheel Utility Small Storage Unit Device Improved Sensor Array Storage Small Storage Unit Processor Machine Analyzer Protection Heavy Armor Plating Weapon Beam Cannon Energy Gun Medium Laser Energy Cannon Beam Cannon Ballistic Gun Assault Rifle Launcher Grenade Launcher Build | -11 -10 -9 -8 ------- Run | Yrd Mat Mat Mat Slots Evolved 4 | . . 2 2 Power . | . . . . Propulsion 2 | . . 1 1 Utility 1 | . . 1 . Weapon 1 | . . . 1 Parts Attached 51 | 5 8 17 21 Power 6 | 1 1 1 3 Engine 3 | 1 1 1 . Core 3 | . . . 3 Reactor . | . . . . Propulsion 19 | 2 3 6 8 Treads 3 | . . . 3 Leg . | . . . . Wheel 16 | 2 3 6 5 Hover . | . . . . Flight . | . . . . Utility 9 | 1 1 4 3 Device 5 | . 1 2 2 Storage 2 | 1 . . 1 Processor 1 | . . 1 . Hackware . | . . . . Protection 1 | . . 1 . Artifact . | . . . . Weapon 17 | 1 3 6 7 Energy Gun 8 | 1 2 2 3 Energy Cannon 3 | . 1 2 . Ballistic Gun 4 | . . 1 3 Ballistic Cannon . | . . . . Launcher 2 | . . 1 1 Special Weapon . | . . . . Impact Weapon . | . . . . Slashing Weapon . | . . . . Piercing Weapon . | . . . . Special Melee Weapon . | . . . . Unidentified Prototypes 5 | . . 3 2 Parts Lost 35 | . 2 8 25 Power 4 | . 1 . 3 Propulsion 15 | . 1 5 9 Utility 6 | . . 1 5 Weapon 10 | . . 2 8 Highest Loss Streak 11 | . 2 4 11 To Critical Strikes . | . . . . Average Backups 4 | . 4 4 4 Power . | . . 1 . Propulsion . | . 2 . . Utility 1 | . . 1 2 Weapon 1 | . 1 2 1 Tool/Special . | . . . . Unused Backups 4 | . . . 4 Power 1 | . . . 1 Propulsion . | . . . . Utility 2 | . . . 2 Weapon 1 | . . . 1 Tool/Special . | . . . . Average Slot Usage (%) 85 | . 91 91 74 Engine 7 | . 10 11 1 Core 2 | . . . 5 Treads 2 | . . . 7 Wheel 23 | . 27 30 14 Device 9 | . 11 8 8 Storage 10 | . 14 11 7 Processor 4 | . . 6 6 Energy Gun 9 | . 16 3 7 Energy Cannon 9 | . 9 18 4 Ballistic Gun 2 | . . . 6 Launcher 1 | . . . 3 Peak Build Rating 22 | 5 7 18 22 Average Rating 11 | 3 6 13 16 On Entrance 6 | . 5 7 15 Naked Turns . | . . . . Heaviest Build 28 | 12 16 28 20 Greatest Support 60 | 32 32 42 60 Greatest Overweight (x) 4 | . . . 4 Average Overweight (x) . | . . . . Largest Inventory Capacity 8 | 8 8 8 8 Average Capacity 7 | 6 8 8 7 Most Carried 8 | 2 6 7 8 Average Carried 4 | . 4 4 4 Final Capacity 8 | 8 8 8 5 Final Carried 5 | 2 5 4 5 Class Distribution -------------------- 45% | Mutant 32% | Scavenger-Mutant 18% | Scavenger-Skirmisher 3% | Skirmisher Dominant Class ---------------- Mutant | -10/Materials Scavenger-Mutant | -9/Materials Scavenger-Skirmisher | -8/Materials Resources | -11 -10 -9 -8 ----------- Run | Yrd Mat Mat Mat Matter Collected 1231 | 250 80 315 586 Remotely . | . . . . Salvage Created 2801 | 53 401 815 1532 Parts 140 | 4 25 50 61 Haulers Intercepted 3 | . 1 1 1 Recyclers Shooed 6 | . 1 3 2 Parts Field Recycled . | . . . . Retrieved Matter . | . . . . Parts Self-Destructed . | . . . . Prevented . | . . . . Kills | -11 -10 -9 -8 ------- Run | Yrd Mat Mat Mat Combat Hostiles Destroyed 45 | . 11 14 20 Guns 27 | . 8 2 17 Cannons 16 | . 3 11 2 AOE 1 | . . . 1 Classes Destroyed 11 | 1 6 3 1 Worker 4 | . 2 . 2 Builder 7 | . . 4 3 Hauler 3 | . 1 1 1 Recycler 8 | 1 . 2 5 Mechanic 1 | . . 1 . Operator 2 | . 1 . 1 Watcher 3 | . 1 2 . Swarmer 13 | . 6 7 . Grunt 27 | . 5 4 18 Brawler 1 | . . . 1 Sentry 4 | . . 3 1 Best Kill Streak 10 | 1 7 9 10 Combat Bots Only 4 | . 3 4 3 Max Kills in Single Turn 2 | 1 1 2 1 Gunslinging . | . . . . Exploded 1 | . . . 1 Melee . | . . . . Uniques/NPCs Destroyed . | . . . . Combat | -11 -10 -9 -8 -------- Run | Yrd Mat Mat Mat Hostile Shots Fired 312 | . 54 77 181 Missed 83 | . 12 18 53 Hits 229 | . 42 59 128 Melee 5 | . . . 5 Projectile 224 | . 42 59 123 Critical Strikes 4 | . . . 4 Damage Taken 3387 | . 456 826 2105 Core 705 | . 92 220 393 Absorbed by Shields . | . . . . Regen/Repaired (Parts) 69 | . . 69 . Core Remaining (%) 69 | 100 63 45 . Volleys Fired 210 | 3 47 60 100 Largest 3 | 1 2 2 3 Hottest 153 | 50 110 128 153 Shots Fired 403 | 3 81 112 207 Gun 256 | 3 60 16 177 Cannon 143 | . 21 96 26 Launcher 4 | . . . 4 Special . | . . . . Kinetic 83 | . . . 83 Thermal 294 | 3 81 112 98 Explosive 4 | . . . 4 Electromagnetic 22 | . . . 22 Robot Hit Streak 13 | 3 10 7 13 Robot Miss Streak 5 | . 3 4 5 Penetration Max . | . . . . Secondary Targets 6 | . 1 . 5 Max Gunslinging Chain 1 | . 1 . 1 Shots Hit Robots 240 | 3 52 56 129 Core Hits 111 | 2 23 27 59 Critical Kills 1 | . . 1 . Critical Parts Destroyed . | . . . . Critical Strikes 13 | . 4 3 6 Burn 12 | . 4 2 6 Meltdown 1 | . . 1 . Melee Attacks . | . . . . Impact . | . . . . Slashing . | . . . . Piercing . | . . . . Sneak Attacks . | . . . . Combat Hostiles . | . . . . Follow-up Attacks . | . . . . Damage Inflicted 4275 | 38 742 1053 2442 Guns 2588 | 38 483 183 1884 Cannons 1368 | . 246 864 258 Explosions 282 | . . . 282 Melee . | . . . . Ramming 37 | . 13 6 18 Kinetic 657 | . . . 657 Thermal 3060 | 38 729 1047 1246 Explosive 244 | . . . 244 Electromagnetic 277 | . . . 277 Impact . | . . . . Slashing . | . . . . Piercing . | . . . . Highest Corruption 2 | . . . 2 Average Corruption 2 | . . . 2 Corruption Purged . | . . . . Corruption Blocked . | . . . . Effects 2 | . . . 2 Message Errors 1 | . . . 1 Matter Fused 1 | . . . 1 Overload Shots . | . . . . Overflow Damage 44 | . . 14 30 Projectiles 31 | . . 14 17 Explosions 13 | . . . 13 Melee . | . . . . Knockbacks . | . . . . Impact . | . . . . Kinetic . | . . . . Secondary . | . . . . Self-Inflicted Damage 25 | . 6 3 16 Shots 1 | . . . 1 Rammed 5 | . 2 1 2 Targets Rammed 7 | . 2 1 4 Kicked . | . . . . Crushed 2 | . . . 2 Highest Temperature 616 | 50 480 616 531 Average Temperature 176 | 30 124 233 143 Received Heat Transfer 1509 | . 171 195 1143 Effects 51 | . . 33 18 Shutdowns 12 | . . 10 2 Energy Bleed 4 | . . 2 2 Interference 11 | . . 7 4 Matter Decay 5 | . . 4 1 Short Circuit 3 | . . . 3 Damage (minor) 5 | . . 3 2 Damage (major) 8 | . . 4 4 Damage (core) 3 | . . 3 . Siege Activations . | . . . . Martial Activations . | . . . . Shielding Activations . | . . . . Robots Disrupted . | . . . . Combat Hostiles . | . . . . Robots Corrupted . | . . . . Combat Hostiles . | . . . . Parts Fried 1 | . . . 1 Impact Corruptions . | . . . . Robots Melted 1 | . . 1 . Combat Hostiles 1 | . . 1 . Parts Melted 17 | . 8 6 3 Heat Transferred 7638 | 111 2162 2479 2886 Parts Sabotaged . | . . . . Parts Stolen . | . . . . Parts Stripped . | . . . . Power Chain Reactions 1 | . . . 1 Alert | -11 -10 -9 -8 ------- Run | Yrd Mat Mat Mat Maximum Alert Level . | . . . . Low Security (%) 100 | 100 100 100 100 Level 1 . | . . . . Level 2 . | . . . . Level 3 . | . . . . Level 4 . | . . . . Level 5 . | . . . . High Security . | . . . . Max Security . | . . . . Peak Influence 185 | 5 84 182 185 Initial 59 | . . . 59 Average 69 | . 36 109 80 Influence Increases 1414 | 5 299 455 655 Destroy 0b10 Robot/C 900 | . 220 280 400 Destroy 0b10 Robot/NC 140 | 5 25 50 60 Destroy Leader 182 | . 54 56 72 Successful Hack 24 | . . 24 . Destroy Structure 33 | . . . 33 Partial Spotted 15 | . . 15 . Lose Combat Pursuer 120 | . . 30 90 Influence Decreases 1289 | 5 299 314 671 Entered New Map 82 | . . . 82 Time Decay 863 | 5 279 234 345 Lost Part 344 | . 20 80 244 Squads Dispatched 5 | . 2 . 3 Investigation 1 | . . . 1 Extermination . | . . . . Reinforcement 4 | . 2 . 2 Assault . | . . . . Garrison . | . . . . Intercept . | . . . . Searches Triggered . | . . . . Construction Impeded 1 | . . . 1 Haulers Reinforced . | . . . . Active Scanning Responses . | . . . . Cargo Convoy Interrupts . | . . . . Stealth | -11 -10 -9 -8 --------- Run | Yrd Mat Mat Mat Distress Signals 9 | . 2 2 5 Communications Jammed . | . . . . Distress Signals . | . . . . Times Spotted 76 | . 20 22 34 Peak Tracking Total 6 | . 5 4 6 Tactical Retreats 5 | . . 2 3 Traps | -11 -10 -9 -8 ------- Run | Yrd Mat Mat Mat Traps Triggered 1 | . . . 1 Indirectly . | . . . . Trap Hack Attempts . | . . . . Triggered . | . . . . Disarmed . | . . . . Reprogrammed . | . . . . Reused . | . . . . Traps Extracted . | . . . . Installed . | . . . . Triggered . | . . . . Machines | -11 -10 -9 -8 ---------- Run | Yrd Mat Mat Mat Machines Disabled . | . . . . Max in Single Turn . | . . . . Machines Repaired . | . . . . Machines Dismantled . | . . . . Machines Sabotaged . | . . . . Overloaded Fab Kills . | . . . . Hacking | -11 -10 -9 -8 --------- Run | Yrd Mat Mat Mat Machines Accessed 1 | . . 1 . Terminals . | . . . . Fabricators . | . . . . Repair Stations 1 | . . 1 . Recycling Units . | . . . . Scanalyzers . | . . . . Garrison Access . | . . . . Total Hacks 4 | . . 4 . Successful 2 | . . 2 . Failed 2 | . . 2 . Catastrophic . | . . . . Database Lockouts . | . . . . Manual . | . . . . Terminals . | . . . . Fabricators . | . . . . Repair Stations 4 | . . 4 . Recycling Units . | . . . . Scanalyzers . | . . . . Garrison Access . | . . . . Terminal Hacks . | . . . . Fabricator Hacks . | . . . . Repair Station Hacks 2 | . . 2 . Scan Component 1 | . . 1 . Repair 1 | . . 1 . Recycling Unit Hacks . | . . . . Scanalyzer . | . . . . Garrison Access Hacks . | . . . . Unauthorized Hacks . | . . . . Terminals . | . . . . Fabricators . | . . . . Repair Stations . | . . . . Recycling Units . | . . . . Scanalyzers . | . . . . Garrison Access . | . . . . Data Cores Recovered . | . . . . Used . | . . . . Hacking Detections 1 | . . 1 . Full Trace Events . | . . . . Feedback Events . | . . . . Feedback Blocked . | . . . . Robot Schematics Acquired . | . . . . Robots Built . | . . . . Authchips . | . . . . Time . | . . . . Total Robot Build Rating . | . . . . Part Schematics Acquired . | . . . . Parts Built . | . . . . Authchips . | . . . . Time . | . . . . Total Part Build Rating . | . . . . Parts Repaired 1 | . . 1 . Time 13 | . . 13 . Parts Recycled . | . . . . Recycled Matter . | . . . . Retrieved Matter . | . . . . Retrieved Components . | . . . . Parts Scanalyzed . | . . . . Part Schematics Acquired . | . . . . Parts Damaged . | . . . . Bothacking | -11 -10 -9 -8 ------------ Run | Yrd Mat Mat Mat Used RIF Installer . | . . . . Robots Hacked . | . . . . Non-combat . | . . . . Combat . | . . . . Robot Hacks Applied . | . . . . Relay Couplers Released . | . . . . Fabnet Peak Effective % . | . . . . Robots Rewired . | . . . . Allies Hacked . | . . . . Hacks Repelled . | . . . . Allies | -11 -10 -9 -8 -------- Run | Yrd Mat Mat Mat Total Allies . | . . . . Largest Group . | . . . . Highest-Rated Group . | . . . . Highest-Rated Ally . | . . . . Total Orders . | . . . . Ally Attacks . | . . . . Total Damage . | . . . . Kills . | . . . . Allies Corrupted . | . . . . Allies Melted . | . . . . Intel | -11 -10 -9 -8 ------- Run | Yrd Mat Mat Mat Active Infowar (turns) 1619 | . 645 436 538 Sensors 1334 | . 645 436 253 Machine Analysis 843 | . . 324 519 Robot Analysis Total . | . . . . Derelict Logs Recovered . | . . . . Drone Launches . | . . . . Drone Recoveries . | . . . . Exploration | -11 -10 -9 -8 ------------- Run | Yrd Mat Mat Mat Turns Passed 2189 | 56 782 546 805 Spaces Moved 1342 | 37 675 344 286 Core 11 | 4 . . 7 Treads 93 | . . . 93 Legs . | . . . . Wheels 1238 | 33 675 344 186 Hover . | . . . . Flight . | . . . . Fastest Speed 50 | 50 90 86 86 Average Speed 96 | 94 92 87 118 Slowest Speed 250 | 100 100 100 250 Overloaded Moves . | . . . . Propulsion Burnouts . | . . . . Robots Hopped . | . . . . Potential Cave-ins . | . . . . Cave-ins Triggered . | . . . . Exploration Rate (%) 35 | 4 87 32 17 Regions Visited 3 Branch Regions . Pre-discovered Areas . | . . . . Known Exits Taken . | . . . . Unknown Exits Taken 3 | 1 1 1 . Scrap Searched . | . . . . Spaces Dug . | . . . . Terrain Destroyed 29 | . . . 29 Melee . | . . . . Projectile . | . . . . AOE 29 | . . . 29 Terrain Rammed . | . . . . Walls Destroyed . | . . . . Machines Disabled . | . . . . Actions | -11 -10 -9 -8 --------- Run | Yrd Mat Mat Mat Total 1846 | 54 754 475 563 Wait 158 | 3 7 33 115 Move 1339 | 36 674 343 286 Hop . | . . . . Pick Up 55 | 7 11 13 24 Fast Attach 3 | . . . 3 Attach 45 | 5 4 16 20 Detach 3 | . . 2 1 Swap 14 | . 5 4 5 Drop 12 | . 4 3 5 Fire 210 | 3 47 60 100 Melee . | . . . . Ram 3 | . 2 1 . Kick . | . . . . Crush 4 | . . . 4 Escape Stasis . | . . . . Rewire . | . . . . Trap . | . . . . Miscellaneous . | . . . . Route ------- -11/Scrapyard -10/Materials (discovered 4 exits: *Mat x3 / [*Min]) -9/Materials (discovered 2 exits: [*Mat] / [*Sto]) -8/Materials History --------- Turn | Location | Event 11 | -11/Scrapyard | Discovered new exit (range 15) 57 | -11/Scrapyard | Entered Materials 180 | -10/Materials | Discovered new exit (range 16) 300 | -10/Materials | Build established: Mutant 376 | -10/Materials | Discovered new exit (range 8) 606 | -10/Materials | Discovered new exit (range 8) 777 | -10/Materials | Discovered new exit (range 16) 839 | -10/Materials | Entered another Materials area 839 | -9/Materials | Evolved 2 slots: Propulsion x1, Utility x1 1010 | -9/Materials | Lost 4 parts (2n1u1w) 1026 | -9/Materials | Core integrity fell below 50% 1069 | -9/Materials | Repaired Beam Cannon 1081 | -9/Materials | Discovered new exit (range 15) 1246 | -9/Materials | Discovered new exit (range 15) 1340 | -9/Materials | Build established: Scavenger-Mutant 1385 | -9/Materials | Entered another Materials area 1385 | -8/Materials | Evolved 2 slots: Propulsion x1, Weapon x1 1639 | -8/Materials | Lost 6 parts (1p2n1u2w) 1957 | -8/Materials | Core integrity fell below 50% 2019 | -8/Materials | Lost 11 parts (2p3n2u4w) 2190 | -8/Materials | Self-destructed Last Messages --------------- 02107_ K-01 Serf collects debris. 02113_ R-06 Scavenger collects Sml. Matter Pod. 02114_ Slammed into K-01 Serf. 02117_ G-47 Trooper destroyed. 02118_ R-06 Scavenger collects Wheel. 02123_ Crushed R-06 Scavenger. 02123_ R-06 Scavenger destroyed. 02125_ Acquired 6 matter. 02132_ Acquired 3 matter. 02163_ =OT FAOA171:ZMPYPZC2S0&1E 02165_ T-07 Excavator is excavating. 02168_ Y-45 Defender suffers critical hit (Burn). 02169_ Hvy. Assault Rifle destroyed. 02170_ T-07 Excavator is excavating. 02184_ Lgt. Treads destroyed. 02184_ Critical hit (Burn: +37). 02188_ Sml. Storage Unit destroyed. 02190_ Y-45 Defender heat short circuits Beam Rifle. Map ----- +----------------------------------------------------+ | ????????????????????????????????????????? | | ????????????????????????????????????????? | | ????????????????????????????????????????? | | ????????????????????????????????????????? | | ????????????????????????????????????????? | | ????????????????????????????????????????? | | ????????????????????????????????????????? | | ????????????????????????????????????????? | | ????????????????????????????????????????? | | ????????????????????????????????????????? | | ????????????????????????????????????????? | | ????????????????????????????????????????? | | ????????????????????????????????????????? | | ????????????????????????????????????????? | | ????????????????????????????????????????? | | ????????????????????????????????????????? | | ######??????????????????????????????????? | | #??????????????????????????????????? | | #??????????????????????????????????? | | #?#????????????????????????????????? | | # #?????????????####???????????????? | | #??############ #??????????????? | | #???#! """"" ## #######????????? | | +########## """"" ### ## #????????? | | =%%!=%%%! + """"" # #????????? | | ########### /g @ Y #????????? | | #######???# ! g #g #????????? | | ??????????# # #### #????????? | | ""????????# # #???# ##????????? | | R?????????# ! # #???? #?????????? | | ""????????########### #????? #?????????? | | ????????????????????# #????? #?????????? | | """""???????????????#+#?????? #?????????? | | """""???????????????????????? #?????????? | | """""?????????????????????????#?????????? | | ????????????????????????????????????????? | | ????????????????????????????????????????? | | ????????????????????????????????????????? | | ????????????????????????????????????????? | | ????????????????????????????????????????? | | ????????????????????????????????????????? | | ????????????????????????????????????????? | | ????????????????????????????????????????? | | ????????????????????????????????????????? | | ????????????????????????????????????????? | | ????????????????????????????????????????? | | ????????????????????????????????????????? | | ????????????????????????????????????????? | | ????????????????????????????????????????? | | ????????????????????????????????????????? | +----------------------------------------------------+ Best States ------------- Heat Dissipation 59 Energy Generation 14 Energy Capacity 250 Matter Stores 300 Matter Capacity 300 Sight Range 16 Robot Scan Range 15 Terrain Scan Density 10 Armor Coverage 600 Evasion (%) 42 Recoil Reduction 3 Item Schematics ----------------- None Robot Schematics ------------------ None Fabricated ------------ Nothing Repaired ---------- Beam Cannon | 31% | -9/Materials Alien Tech Used ----------------- None Achievements -------------- None Challenges ------------ None Game ------ Seed FieldCentriumBeam Manual? 0 Play Time 00:23:18 Cumulative 23.8 hours Start 2025.09.28 @ 05:44:02 End 2025.09.28 @ 23:54:45 Sessions 3 Manual Loads 0 Difficulty Rogue Special Mode None Game No. 73 Rogue 67 Adventurer 6 Explorer 0 Win Type - Total 0 Types 0/0/0/0/0/0/0/0/0/0 Lore% 10 Gallery% 20 Achievement% 19 Wizard Run 0 Options --------- Layout 1 ASCII 0 Keyboard 0 Movement Numpad Keybinds 0 Fullscreen 1 Font 24/Smallcaps Map View 50x40 Zoom Use 0% Tactical HUD 1 Map Filters NONE Filters NONE Steam 1 RUN: 867ec079-2e5e-43f8-b16a-26f4b83d24fa